bitfinex-derivatives/quotes_BTCF0:USTF0_20251213
["timestamp","ask_amount","ask_price","bid_price","bid_amount"]
[1765591345404,0.00116621,90285.0,90284.0,0.7951]
[1765591345601,0.00116621,90285.0,90284.0,1.1559]
[1765591360109,0.00116621,90285.0,90284.0,0.7951]
[1765591360307,0.00116621,90285.0,90284.0,1.1559]
[1765591364110,0.00116621,90285.0,90284.0,1.18581822]
[1765591365214,0.05962555,90296.0,90295.0,0.05756]
[1765591365412,0.3608,90312.0,90296.0,0.0852637]
[1765591365413,0.08887555,90297.0,90296.0,0.0852637]
[1765591365614,0.02925,90297.0,90296.0,0.0852637]
[1765591366011,0.05962555,90298.0,90297.0,0.05756]
[1765591366208,0.05962555,90299.0,90298.0,0.0852635]
[1765591367114,0.05962555,90300.0,90299.0,0.05756]
[1765591367913,0.08887555,90300.0,90299.0,0.05756]
[1765591368315,0.02925,90300.0,90299.0,0.05756]
[1765591368707,0.03025,90300.0,90299.0,0.08356]
[1765591374317,0.05753,90300.0,90299.0,0.08356]
[1765591374716,0.05753,90300.0,90299.0,0.026]
[1765591376110,0.06926,90300.0,90299.0,0.026]
[1765591376612,0.05753,90300.0,90299.0,0.026]
[1765591376815,0.05753,90300.0,90299.0,0.0549]
[1765591378220,0.05753,90300.0,90299.0,0.08316]
[1765591380722,0.05753,90300.0,90299.0,0.0549]
[1765591381721,0.05753,90300.0,90299.0,0.026]
[1765591387231,0.05753,90300.0,90299.0,0.0549]
[1765591387427,0.05753,90300.0,90299.0,0.08316]
[1765591390331,0.05753,90300.0,90299.0,0.026]
[1765591390729,0.05753,90300.0,90299.0,0.0549]
[1765591391027,0.05753,90300.0,90299.0,0.026]
[1765591393749,0.10187185,90300.0,90299.0,0.026]
[1765591393945,0.05753,90300.0,90299.0,0.026]
[1765591394242,0.06926,90300.0,90299.0,0.026]
[1765591395041,0.05753,90300.0,90299.0,0.026]
[1765591397543,0.05753,90300.0,90299.0,0.0549]
[1765591397950,0.05753,90300.0,90299.0,0.08316]
[1765591419777,0.05705,90289.0,90288.0,0.00016611]
[1765591420571,0.05705,90289.0,90288.0,0.02793611]
[1765591421070,0.05705,90289.0,90288.0,0.04093611]
[1765591421274,0.05705,90289.0,90288.0,0.06855611]
[1765591421275,0.05805,90289.0,90288.0,0.06855611]
[1765591422163,0.05805,90289.0,90288.0,0.07755611]
[1765591422372,0.05905,90289.0,90288.0,0.07755611]
[1765591424670,0.06452243,90289.0,90288.0,0.07755611]
[1765591424872,0.06452243,90289.0,90288.0,0.09526611]
[1765591437187,0.03719243,90289.0,90288.0,0.09526611]
[1765591437587,0.06516243,90289.0,90288.0,0.09526611]
[1765591440680,0.06516243,90289.0,90288.0,0.07755611]
[1765591440880,0.06516243,90289.0,90288.0,0.04993611]
[1765591442188,0.06516243,90289.0,90288.0,0.07865611]
[1765591443684,0.06516243,90289.0,90288.0,0.02216611]
[1765591444786,0.0671257,90280.0,90279.0,0.05706]
[1765591444990,0.4279257,90280.0,90279.0,0.05706]
[1765591445798,0.4279257,90280.0,90279.0,0.07414]
[1765591446291,0.4279257,90280.0,90279.0,0.07514]
[1765591446887,0.4299257,90280.0,90279.0,0.07514]
[1765591447395,0.4279257,90280.0,90279.0,0.07514]
[1765591447593,0.4289257,90280.0,90279.0,0.08114]
[1765591448698,0.4289257,90280.0,90279.0,0.08014]
[1765591448900,0.4299257,90280.0,90279.0,0.08414]
[1765591449696,0.4289257,90280.0,90279.0,0.07814]
[1765591449903,0.4299257,90280.0,90279.0,0.08414]
[1765591453102,0.4289257,90280.0,90279.0,0.07814]
[1765591453292,0.4299257,90280.0,90279.0,0.08414]
[1765591462912,0.47464388,90280.0,90279.0,0.06706]
[1765591463115,0.4299257,90280.0,90279.0,0.06706]
[1765591464513,0.0691257,90280.0,90279.0,0.06706]
[1765591464714,0.4299257,90280.0,90279.0,0.06706]
[1765591474318,0.48953016,90280.0,90279.0,0.06706]
[1765591485220,0.4299257,90280.0,90279.0,0.06706]
[1765591486018,0.48953016,90280.0,90279.0,0.06706]
[1765591487521,0.4299257,90280.0,90279.0,0.06706]
[1765591489026,0.48953016,90280.0,90279.0,0.06706]
[1765591489727,0.4299257,90280.0,90279.0,0.06706]
[1765591489919,0.48953016,90280.0,90279.0,0.06706]
[1765591490827,0.4299257,90280.0,90279.0,0.06706]
[1765591491026,0.48953016,90280.0,90279.0,0.06706]
[1765591491319,0.4299257,90280.0,90279.0,0.06706]
[1765591493931,0.48953016,90280.0,90279.0,0.06706]
[1765591496032,0.12873016,90280.0,90279.0,0.06706]
[1765591502231,0.11765446,90280.0,90279.0,0.06706]
[1765591504227,0.05805,90280.0,90279.0,0.06706]
[1765591504730,0.0691257,90280.0,90279.0,0.06706]
[1765591504930,0.05805,90280.0,90279.0,0.06706]
[1765591505932,0.002,90280.0,90279.0,0.06706]
[1765591525649,0.002,90280.0,90279.0,0.10695096]
[1765591526440,0.00016611,90289.0,90288.0,0.0840747]
[1765591526639,0.1662832,90296.0,90295.0,0.05696]
[1765591526841,0.1955532,90296.0,90295.0,0.05696]
[1765591528353,0.1965532,90296.0,90295.0,0.0710339]
[1765591528753,0.1955532,90296.0,90295.0,0.0680339]
[1765591528944,0.1965532,90296.0,90295.0,0.0720339]
[1765591529145,0.2243432,90296.0,90295.0,0.0720339]
[1765591529846,0.2243432,90296.0,90295.0,0.0760339]
[1765591530642,0.2243432,90296.0,90295.0,0.0720339]
[1765591530848,0.05906,90296.0,90295.0,0.0780339]
[1765591531151,0.002,90296.0,90295.0,0.0780339]
[1765591532052,0.002,90296.0,90295.0,0.4388339]
[1765591535349,0.31169,90318.0,90295.0,0.4388339]
[1765591535350,0.07242969,90333.0,90332.0,0.0680293]
[1765591535553,0.02779,90322.0,90318.0,0.01797]
[1765591535855,0.02927,90317.0,90316.0,0.0680312]
[1765591536060,0.58194142,90341.0,90340.0,0.0859984]
[1765591536247,0.41786,90341.0,90340.0,0.0859984]
[1765591536959,0.3608,90341.0,90340.0,0.0859984]
[1765591537259,0.41786,90341.0,90340.0,0.0859984]
[1765591537462,0.05706,90341.0,90340.0,0.0899984]
[1765591538148,0.05706,90341.0,90340.0,0.0919984]
[1765591540356,0.0110675,90347.0,90346.0,0.05696]
[1765591540555,0.3608,90351.0,90350.0,0.07493]
[1765591540556,0.39007,90351.0,90350.0,0.07493]
[1765591540761,0.41786,90351.0,90350.0,0.07493]
[1765591541865,0.41786,90351.0,90350.0,0.07593]
[1765591542863,0.39007,90351.0,90350.0,0.07593]
[1765591543063,0.39007,90351.0,90350.0,0.07693]
[1765591543666,0.3608,90351.0,90350.0,0.07693]
[1765591543963,0.39007,90351.0,90350.0,0.07693]
[1765591544160,0.3608,90351.0,90350.0,0.07693]
[1765591544367,0.00555216,90361.0,90358.0,0.05696]
[1765591544368,0.39007,90359.0,90358.0,0.05696]
[1765591544667,0.41786,90359.0,90358.0,0.05696]
[1765591544869,0.3608,90359.0,90358.0,0.0680261]
[1765591546468,0.39007,90359.0,90358.0,0.0680261]
[1765591546966,0.41786,90359.0,90358.0,0.0700261]
[1765591549669,0.41786,90369.0,90368.0,0.0680249]
[1765591551173,0.41786,90369.0,90368.0,0.0872949]
[1765591551865,0.05706,90369.0,90368.0,0.0912949]
[1765591553672,0.4186,90379.0,90378.0,0.0669737]
[1765591554064,0.42413612,90379.0,90378.0,0.0392137]
[1765591554265,0.42413612,90379.0,90378.0,0.0110637]
[1765591555178,0.42413612,90379.0,90378.0,0.0412137]
[1765591555863,0.42413612,90379.0,90378.0,0.0392137]
[1765591556064,0.4186,90379.0,90378.0,0.0432137]
[1765591556265,0.4186,90379.0,90378.0,0.0442137]
[1765591556673,0.4186,90379.0,90378.0,0.0432137]
[1765591556878,0.4186,90379.0,90378.0,0.0462137]
[1765591557266,0.4186,90379.0,90378.0,0.0739737]
[1765591560876,0.4186,90379.0,90378.0,0.0462137]
[1765591561074,0.4186,90379.0,90378.0,0.0180637]
[1765591561271,0.4186,90379.0,90378.0,0.0739737]
[1765591562180,0.0578,90379.0,90378.0,0.0739737]
[1765591564375,0.1175183,90379.0,90378.0,0.0739737]
[1765591565275,0.0578,90379.0,90378.0,0.0739737]
[1765591566077,0.0578,90379.0,90378.0,0.0462137]
[1765591566479,0.0578,90379.0,90378.0,0.03515]
[1765591568279,0.0578,90379.0,90378.0,0.007]
[1765591569373,0.0578,90379.0,90378.0,0.03515]
[1765591572174,0.0578,90379.0,90378.0,0.06291]
[1765591573384,0.13731847,90379.0,90378.0,0.06291]
[1765591574190,0.0578,90379.0,90378.0,0.007]
[1765591575487,0.0578,90379.0,90378.0,0.06291]
[1765591576089,0.0578,90379.0,90378.0,0.03515]
[1765591576989,0.0578,90379.0,90378.0,0.007]
[1765591584296,0.0669347,90370.0,90369.0,0.12316722]
[1765591584494,0.0669347,90370.0,90369.0,0.05579601]
[1765591585013,0.0669347,90370.0,90369.0,0.02733601]
[1765591585414,0.0669347,90370.0,90369.0,0.00016601]
[1765591585597,0.0669347,90370.0,90369.0,0.004]
[1765591585802,0.05587,90349.0,90348.0,0.07193]
[1765591587103,0.11553289,90349.0,90348.0,0.07193]
[1765591587410,0.05587,90349.0,90348.0,0.07193]
[1765591587616,0.05587,90349.0,90348.0,0.07693]
[1765591588008,0.05587,90349.0,90348.0,0.08093]
[1765591588508,0.05587,90349.0,90348.0,0.07693]
[1765591588714,0.05587,90349.0,90348.0,0.08093]
[1765591589015,0.05587,90349.0,90348.0,0.07593]
[1765591589314,0.05587,90349.0,90348.0,0.08193]
[1765591592511,0.05587,90349.0,90348.0,0.07593]
[1765591592719,0.05587,90349.0,90348.0,0.08193]
[1765591593518,0.05587,90349.0,90348.0,0.08093]
[1765591602411,0.05587,90349.0,90348.0,0.07493]
[1765591602616,0.05587,90349.0,90348.0,0.07993]
[1765591603116,0.05587,90349.0,90348.0,0.07693]
[1765591603423,0.05587,90349.0,90348.0,0.07993]
[1765591605028,0.05587,90349.0,90348.0,0.07893]
[1765591605724,0.05587,90349.0,90348.0,0.07393]
[1765591605930,0.05587,90349.0,90348.0,0.07893]
[1765591606322,0.05587,90349.0,90348.0,0.005]
[1765591606632,0.05587,90349.0,90348.0,0.006]
[1765591606927,0.05587,90349.0,90348.0,0.004]
[1765591607127,0.05587,90349.0,90348.0,0.006]
[1765591607718,0.05587,90349.0,90348.0,0.03317]
[1765591608225,0.05587,90349.0,90348.0,0.02917]
[1765591608431,0.05587,90349.0,90348.0,0.03317]
[1765591610333,0.05587,90349.0,90348.0,0.006]
[1765591611031,0.05587,90349.0,90348.0,0.004]
[1765591611248,0.05587,90349.0,90348.0,0.002]
[1765591611526,0.05587,90349.0,90348.0,0.006]
[1765591613030,0.05587,90349.0,90348.0,0.002]
[1765591613335,0.05587,90349.0,90348.0,0.005]
[1765591614626,0.05587,90349.0,90348.0,0.004]
[1765591615138,0.1355343,90349.0,90348.0,0.004]
[1765591618237,0.05587,90349.0,90348.0,0.004]
[1765591620229,0.77747,90349.0,90348.0,0.004]
[1765591621430,1.44175,90349.0,90348.0,0.0774]
[1765591621638,0.7216,90349.0,90348.0,0.0774]
[1765591621838,0.00559537,90352.0,90351.0,0.07396]
[1765591622032,0.00559537,90352.0,90351.0,0.085027]
[1765591622230,0.03004568,90358.0,90357.0,0.0679063]
[1765591624837,0.03104568,90358.0,90357.0,0.0679063]
[1765591625241,0.03004568,90358.0,90357.0,0.0679063]
[1765591625543,0.00116568,90358.0,90357.0,0.0679063]
[1765591625744,0.00116568,90358.0,90357.0,0.0689063]
[1765591628137,0.00716568,90358.0,90357.0,0.0699063]
[1765591628336,0.00716568,90358.0,90357.0,0.0689063]
[1765591628643,0.01116568,90358.0,90357.0,0.0689063]
[1765591629652,0.00416568,90358.0,90357.0,0.0679063]
[1765591629857,0.01116568,90358.0,90357.0,0.0689063]
[1765591630345,0.38303178,90358.0,90357.0,0.0689063]
[1765591630739,0.44272178,90358.0,90357.0,0.05784]
[1765591633453,0.43165568,90358.0,90357.0,0.05784]
[1765591634744,0.43165568,90358.0,90357.0,0.0689063]
[1765591637955,0.07085568,90358.0,90357.0,0.0689063]
[1765591642559,0.04104568,90358.0,90357.0,0.0689063]
[1765591642854,0.01116568,90358.0,90357.0,0.0689063]
[1765591643054,0.03988568,90358.0,90357.0,0.0689063]
[1765591643861,0.06777568,90358.0,90357.0,0.0689063]
[1765591644352,0.43964178,90358.0,90357.0,0.0689063]
[1765591647266,0.06777568,90358.0,90357.0,0.0689063]
[1765591661370,0.06077568,90358.0,90357.0,0.0679063]
[1765591661571,0.06777568,90358.0,90357.0,0.0689063]
[1765591661768,0.06377568,90358.0,90357.0,0.0689063]
[1765591661972,0.06777568,90358.0,90357.0,0.0689063]
[1765591666781,0.06777568,90358.0,90357.0,0.0120663]
[1765591667480,0.06777568,90358.0,90357.0,0.0416563]
[1765591669476,0.06777568,90358.0,90357.0,0.0120663]
[1765591669682,0.12743059,90358.0,90357.0,0.0120663]
[1765591670281,0.06777568,90358.0,90357.0,0.001]
[1765591670782,0.06377568,90358.0,90357.0,0.001]
[1765591671087,0.05592,90350.0,90349.0,0.17999]
[1765591672780,0.05792,90350.0,90349.0,0.18099]
[1765591673281,0.05592,90350.0,90349.0,0.18299]
[1765591673482,0.05592,90350.0,90349.0,0.18799]
[1765591674175,0.05592,90350.0,90349.0,0.18299]
[1765591674375,0.05592,90350.0,90349.0,0.18799]
[1765591675781,0.05592,90350.0,90349.0,0.06609]
[1765591684990,0.05592,90350.0,90349.0,0.06109]
[1765591685190,0.05592,90350.0,90349.0,0.06609]
[1765591685986,0.05976145,90356.0,90355.0,0.0693365]
[1765591686189,0.00016568,90358.0,90357.0,0.0867263]
[1765591688295,0.00016568,90358.0,90357.0,0.0877263]
[1765591688597,0.03458568,90358.0,90357.0,0.0887263]
[1765591689197,0.03858568,90358.0,90357.0,0.0877263]
[1765591691693,0.06578568,90358.0,90357.0,0.0877263]
[1765591692483,0.03858568,90358.0,90357.0,0.0877263]
[1765591693491,0.03858568,90358.0,90357.0,0.4485263]
[1765591699099,0.06578568,90358.0,90357.0,0.4485263]
[1765591706208,0.06578568,90358.0,90357.0,0.0877263]
[1765591706497,0.06578568,90358.0,90357.0,0.07666]
[1765591707706,0.05878568,90358.0,90357.0,0.07566]
[1765591707899,0.06178568,90358.0,90357.0,0.07666]
[1765591708094,0.06578568,90358.0,90357.0,0.07666]
[1765591708789,0.05878568,90358.0,90357.0,0.07866]
[1765591709803,0.05478568,90358.0,90357.0,0.07866]
[1765591710005,0.05478568,90358.0,90357.0,0.08466]
[1765591712206,0.00016568,90358.0,90357.0,0.44546]
[1765591714107,0.02935568,90358.0,90357.0,0.44546]
[1765591714909,0.05749568,90358.0,90357.0,0.44546]
[1765591715214,0.02935568,90358.0,90357.0,0.44546]
[1765591724230,0.02935568,90358.0,90357.0,0.08466]
[1765591725630,0.06856178,90358.0,90357.0,0.08466]
[1765591726130,0.06856178,90358.0,90357.0,0.009]
[1765591726828,0.06856178,90358.0,90357.0,0.006]
[1765591727035,0.06856178,90358.0,90357.0,0.009]
[1765591727629,0.05733,90357.0,90356.0,0.1219]
[1765591728031,0.05733,90340.0,90339.0,0.07617601]
[1765591728234,0.05733,90340.0,90339.0,0.00016601]
[1765591729844,0.05733,90340.0,90339.0,0.00216601]
[1765591730137,0.05733,90340.0,90339.0,0.00616601]
[1765591731647,0.06906,90340.0,90339.0,0.00616601]
[1765591731937,0.07450777,90340.0,90339.0,0.00616601]
[1765591733143,0.07450777,90340.0,90339.0,0.00516601]
[1765591733545,0.07450777,90340.0,90339.0,0.00416601]
[1765591733745,0.07450777,90340.0,90339.0,0.00616601]
[1765591735140,0.07450777,90340.0,90339.0,0.00416601]
[1765591735345,0.07450777,90340.0,90339.0,0.00616601]
[1765591736041,0.43530777,90340.0,90339.0,0.00616601]
[1765591736440,0.49501897,90340.0,90339.0,0.00616601]
[1765591736643,0.0686098,90328.0,90327.0,0.07531]
[1765591738349,0.0686098,90328.0,90327.0,0.07931]
[1765591738741,0.0686098,90328.0,90327.0,0.08131]
[1765591739147,0.0686098,90328.0,90327.0,0.07731]
[1765591739349,0.0686098,90328.0,90327.0,0.08131]
[1765591739948,0.0686098,90328.0,90327.0,0.07731]
[1765591740140,0.0686098,90328.0,90327.0,0.08031]
[1765591740448,0.05754,90328.0,90327.0,0.08031]
[1765591740848,0.05754,90328.0,90327.0,0.07831]
[1765591741145,0.05754,90328.0,90327.0,0.08031]
[1765591741546,0.05754,90328.0,90327.0,0.07731]
[1765591741851,0.05754,90328.0,90327.0,0.08131]
[1765591745049,0.05754,90328.0,90327.0,0.07731]
[1765591745248,0.05754,90328.0,90327.0,0.08131]
[1765591745847,0.05754,90328.0,90327.0,0.07731]
[1765591746036,0.05754,90328.0,90327.0,0.08131]
[1765591747344,0.05754,90328.0,90327.0,0.07931]
[1765591747546,0.05754,90328.0,90327.0,0.08131]
[1765591748149,0.05754,90328.0,90327.0,0.07931]
[1765591748352,0.05754,90328.0,90327.0,0.08131]
[1765591748742,0.05754,90328.0,90327.0,0.07931]
[1765591748942,0.05754,90328.0,90327.0,0.08131]
[1765591750457,0.3608,90331.0,90330.0,0.07516]
[1765591751257,0.38992,90331.0,90330.0,0.07516]
[1765591751553,0.41834,90331.0,90330.0,0.07916]
[1765591751956,0.41834,90331.0,90330.0,0.08116]
[1765591753761,0.05754,90331.0,90330.0,0.08116]
[1765591755456,0.02912,90331.0,90330.0,0.08116]
[1765591755644,0.05754,90331.0,90330.0,0.08116]
[1765591764057,0.05754,90331.0,90330.0,0.0922296]
[1765591768559,0.00016601,90337.0,90330.0,0.0922296]
[1765591768560,0.00016601,90337.0,90330.0,0.08116]
[1765591768858,0.02779601,90337.0,90336.0,0.0871188]
[1765591769062,0.05642601,90337.0,90336.0,0.0871188]
[1765591770559,0.05642601,90337.0,90336.0,0.0911188]
[1765591771161,0.05642601,90337.0,90336.0,0.0921188]
[1765591772450,0.05642601,90337.0,90336.0,0.0891188]
[1765591772650,0.05642601,90337.0,90336.0,0.0931188]
[1765591776355,0.11592184,90337.0,90336.0,0.0931188]
[1765591780161,0.05642601,90337.0,90336.0,0.0931188]
[1765591787470,0.00547635,90343.0,90342.0,0.07605]
[1765591787670,0.05626,90345.0,90344.0,0.05911]
[1765591789064,0.05626,90345.0,90344.0,0.06011]
[1765591790482,0.05626,90345.0,90344.0,0.06311]
[1765591801293,0.05626,90345.0,90344.0,0.004]
[1765591801685,0.05626,90345.0,90344.0,0.03119]
[1765591801887,0.06799,90345.0,90344.0,0.004]
[1765591802192,0.05626,90345.0,90344.0,0.004]
[1765591802388,0.05626,90345.0,90344.0,0.03119]
[1765591802580,0.05626,90345.0,90344.0,0.06083]
[1765591836608,0.02763,90345.0,90344.0,0.06083]
[1765591836811,0.05478,90345.0,90344.0,0.06083]
[1765591845120,0.05478,90345.0,90344.0,0.07744]
[1765591904366,0.11455138,90345.0,90344.0,0.07744]
[1765591914386,0.05478,90345.0,90344.0,0.07744]
[1765591942912,0.05478,90345.0,90344.0,0.004]
[1765591943112,0.0683709,90319.0,90314.0,0.00011202]
[1765591943317,0.4291709,90319.0,90318.0,0.05790601]
[1765591943506,0.4291709,90319.0,90318.0,0.07447601]
[1765591944016,0.4291709,90319.0,90318.0,0.00016601]
[1765591944214,0.0801014,90315.0,90314.0,0.00011202]
[1765591944415,0.1632893,90315.0,90314.0,0.00011202]
[1765591944709,0.10375017,90315.0,90314.0,0.00011202]
[1765591945215,0.16323659,90315.0,90314.0,0.00011202]
[1765591945810,0.10375017,90315.0,90314.0,0.00011202]
[1765591946017,0.10375017,90315.0,90314.0,0.00211202]
[1765591946602,0.10375017,90315.0,90314.0,0.00011202]
[1765591946812,0.10375017,90315.0,90314.0,0.00111202]
[1765591947115,0.1641479,90315.0,90314.0,0.00111202]
[1765591947312,0.10475017,90315.0,90314.0,0.00111202]
[1765591953013,0.46555017,90315.0,90314.0,0.00111202]
[1765591954715,0.46555017,90315.0,90314.0,0.00011202]
[1765591954916,0.46555017,90315.0,90314.0,0.00211202]
[1765591956022,0.46455017,90315.0,90314.0,0.00211202]
[1765591956215,0.46555017,90315.0,90314.0,0.00211202]
[1765591968235,0.5249479,90315.0,90314.0,0.00211202]
[1765591969236,0.46555017,90315.0,90314.0,0.00211202]
[1765591972830,0.45382017,90315.0,90314.0,0.05919202]
[1765591973425,0.45382017,90315.0,90314.0,0.00211202]
[1765591973625,0.45382017,90315.0,90314.0,0.07629202]
[1765591974228,0.0706225,90306.0,90302.0,0.0110729]
[1765591974430,0.09427127,90306.0,90305.0,0.05724601]
[1765591974934,0.02364877,90306.0,90305.0,0.05724601]
[1765591975129,0.05968585,90307.0,90306.0,0.0852525]
[1765591975435,0.08407569,90307.0,90306.0,0.0852525]
[1765591975632,0.02438984,90307.0,90306.0,0.0852525]
[1765591976434,0.02438984,90307.0,90306.0,0.0872525]
[1765591977334,0.02438984,90307.0,90306.0,0.0912525]
[1765591977837,0.08393984,90307.0,90306.0,0.0741525]
[1765591979531,0.08393984,90307.0,90306.0,0.0701525]
[1765591979733,0.08393984,90307.0,90306.0,0.0741525]
[1765591980332,0.08393984,90307.0,90306.0,0.0701525]
[1765591980530,0.08393984,90307.0,90306.0,0.0741525]
[1765591982736,0.08393984,90307.0,90306.0,0.0912525]
[1765591989539,0.08392773,90307.0,90306.0,0.0912525]
[1765591996752,0.08392773,90307.0,90306.0,0.4520525]
[1765591998044,0.08392773,90307.0,90306.0,0.4500525]
[1765591998248,0.08392773,90307.0,90306.0,0.4520525]
[1765591998747,0.08392773,90307.0,90306.0,0.4480525]
[1765591998948,0.08492773,90307.0,90306.0,0.4480525]
[1765591999557,0.08492773,90307.0,90306.0,0.4460525]
[1765591999854,0.08792773,90307.0,90306.0,0.4470525]
[1765592001956,0.06365553,90307.0,90306.0,0.4470525]
[1765592002958,0.06065553,90307.0,90306.0,0.4460525]
[1765592003151,0.06365553,90307.0,90306.0,0.4460525]
[1765592003658,0.06365553,90307.0,90306.0,0.4470525]
[1765592003861,0.08767513,90307.0,90306.0,0.4470525]
[1765592004557,0.02812513,90307.0,90306.0,0.4470525]
[1765592005351,0.05695513,90307.0,90306.0,0.4470525]
[1765592005554,0.05695513,90307.0,90306.0,0.0862525]
[1765592005854,0.05695513,90307.0,90306.0,0.0852525]
[1765592010861,0.08635513,90307.0,90306.0,0.0852525]
[1765592023880,0.08635513,90307.0,90306.0,0.0681525]
[1765592065106,0.08635513,90307.0,90306.0,0.05708]
[1765592070910,0.0597297,90315.0,90314.0,0.06601]
[1765592071097,0.07371573,90327.0,90326.0,0.05673]
[1765592071304,0.10347573,90327.0,90326.0,0.05673]
[1765592071507,0.04376573,90327.0,90326.0,0.05673]
[1765592071707,0.01918474,90327.0,90326.0,0.05673]
[1765592072511,0.02618474,90327.0,90326.0,0.05773]
[1765592073112,0.02518474,90327.0,90326.0,0.05773]
[1765592073812,0.02818474,90327.0,90326.0,0.05773]
[1765592074413,0.02518474,90327.0,90326.0,0.05773]
[1765592074608,0.02818474,90327.0,90326.0,0.05773]
[1765592075714,0.02518474,90327.0,90326.0,0.05773]
[1765592075908,0.02918474,90327.0,90326.0,0.05773]
[1765592076425,0.05913474,90327.0,90326.0,0.05773]
[1765592076619,0.08889474,90327.0,90326.0,0.05773]
[1765592078116,0.08789474,90327.0,90326.0,0.05773]
[1765592078911,0.02818474,90327.0,90326.0,0.05773]
[1765592079509,0.02818474,90327.0,90326.0,0.41853]
[1765592079713,0.02818474,90327.0,90326.0,0.47155674]
[1765592080915,0.02818474,90327.0,90326.0,0.41853]
[1765592081812,0.02818474,90327.0,90326.0,0.47215859]
[1765592082520,0.02818474,90327.0,90326.0,0.59405859]
[1765592083121,0.02418464,90327.0,90326.0,0.59290109]
[1765592083616,0.02418464,90327.0,90326.0,0.17963]
[1765592083823,0.02418464,90327.0,90326.0,0.90123]
[1765592084015,0.02418464,90327.0,90326.0,0.95370109]
[1765592084415,0.02418464,90327.0,90326.0,0.90123]
[1765592084719,0.02418464,90327.0,90326.0,0.95355859]
[1765592085522,0.02418464,90327.0,90326.0,0.17963]
[1765592085721,0.02418464,90327.0,90326.0,0.90123]
[1765592087318,0.02418464,90327.0,90326.0,0.9548164]
[1765592087718,0.02418464,90327.0,90326.0,0.90123]
[1765592087919,0.02418464,90327.0,90326.0,0.95396696]
[1765592088618,0.02418464,90327.0,90326.0,0.90123]
[1765592090027,0.02418464,90327.0,90326.0,0.95380864]
[1765592090326,0.02418464,90327.0,90326.0,0.97025864]
[1765592090625,0.02418464,90327.0,90326.0,0.97027245]
[1765592091432,0.02418464,90327.0,90326.0,0.97084307]
[1765592093329,0.02418464,90327.0,90326.0,0.91768]
[1765592093929,0.02418464,90327.0,90326.0,0.96996114]
[1765592094526,0.0478358,90327.0,90326.0,0.91768]
[1765592095636,0.0478358,90327.0,90326.0,0.97079335]
[1765592096024,0.0478358,90327.0,90326.0,0.91768]
[1765592096927,0.02418464,90327.0,90326.0,0.91768]
[1765592097123,0.04785762,90327.0,90326.0,0.91768]
[1765592098334,0.04785762,90327.0,90326.0,0.97070085]
[1765592098634,0.04785762,90327.0,90326.0,0.91768]
[1765592099535,0.04785762,90327.0,90326.0,0.9700424]
[1765592099744,0.04785762,90327.0,90326.0,0.2484424]
[1765592099928,0.04785762,90327.0,90326.0,0.91768]
[1765592100535,0.10493762,90327.0,90326.0,0.97001367]
[1765592100730,0.10493762,90327.0,90326.0,0.59276367]
[1765592102027,0.10493762,90327.0,90326.0,0.59235958]
[1765592102937,0.10493762,90327.0,90326.0,0.54043]
[1765592103126,0.10493762,90327.0,90326.0,0.59223335]
[1765592104623,0.10493762,90327.0,90326.0,0.54043]
[1765592105328,0.10493762,90327.0,90326.0,0.59339276]
[1765592105635,0.10493762,90327.0,90326.0,0.59222066]
[1765592105937,0.10493762,90327.0,90326.0,0.54043]
[1765592106139,0.10493762,90327.0,90326.0,0.59222066]
[1765592106452,0.04785762,90327.0,90326.0,0.59222066]
[1765592107038,0.04785762,90327.0,90326.0,0.59380444]
[1765592108139,0.04785762,90327.0,90326.0,0.59346795]
[1765592109430,0.03267298,90327.0,90326.0,0.54043]
[1765592110538,0.03267298,90327.0,90326.0,0.59272589]
[1765592110939,0.03267298,90327.0,90326.0,0.95352589]
[1765592112042,0.03267298,90327.0,90326.0,0.95370242]
[1765592113642,0.03267298,90327.0,90326.0,0.9547297]
[1765592113846,0.009,90327.0,90326.0,0.9547297]
[1765592114046,0.03678,90327.0,90326.0,0.9547297]
[1765592114249,0.03678,90327.0,90326.0,0.90123]
[1765592114446,0.03678,90327.0,90326.0,0.96102848]
[1765592114635,0.009,90327.0,90326.0,0.96102848]
[1765592114833,0.009,90327.0,90326.0,0.9547297]
[1765592115037,0.009,90327.0,90326.0,0.95427099]
[1765592115247,0.009,90327.0,90326.0,0.97070099]
[1765592115838,0.009,90327.0,90326.0,0.91766]
[1765592116037,0.009,90327.0,90326.0,0.97745848]
[1765592117551,0.009,90327.0,90326.0,0.66985033]
[1765592118049,0.009,90327.0,90326.0,0.66941727]
[1765592118546,0.009,90327.0,90326.0,0.61665848]
[1765592120149,0.009,90327.0,90326.0,0.66842314]
[1765592120548,0.009,90327.0,90326.0,0.61665848]
[1765592120748,0.009,90327.0,90326.0,0.66874106]
[1765592121144,0.009,90327.0,90326.0,0.61665848]
[1765592122042,0.009,90327.0,90326.0,0.66889029]
[1765592124056,0.009,90327.0,90326.0,0.61665848]
[1765592124348,0.009,90327.0,90326.0,0.66958975]
[1765592124550,0.009,90327.0,90326.0,0.60979127]
[1765592125342,0.009,90327.0,90326.0,0.55686]
[1765592126353,0.009,90327.0,90326.0,0.6091403]
[1765592126948,0.009,90327.0,90326.0,0.55686]
[1765592127148,0.009,90327.0,90326.0,0.6084492]
[1765592127955,0.009,90327.0,90326.0,0.55686]
[1765592128751,0.009,90327.0,90326.0,0.60994171]
[1765592129352,0.009,90327.0,90326.0,0.55686]
[1765592130053,0.009,90327.0,90326.0,0.60969785]
[1765592131353,0.009,90327.0,90326.0,0.55686]
[1765592132345,0.009,90327.0,90326.0,0.60964842]
[1765592133050,0.009,90327.0,90326.0,0.55686]
[1765592134959,0.03816,90327.0,90326.0,0.55686]
[1765592135160,0.03816,90327.0,90326.0,0.60864404]
[1765592135360,0.03816,90327.0,90326.0,0.60942604]
[1765592136064,0.03816,90327.0,90326.0,0.55686]
[1765592136262,0.03816,90327.0,90326.0,0.66934362]
[1765592138059,0.03816,90327.0,90326.0,0.61665848]
[1765592138261,0.03816,90327.0,90326.0,0.66859482]
[1765592139060,0.03816,90327.0,90326.0,0.61665848]
[1765592139264,0.03816,90327.0,90326.0,0.66958718]
[1765592140662,0.03816,90327.0,90326.0,0.61665848]
[1765592141858,0.03816,90327.0,90326.0,0.6695116]